bitfinex/quotes_SOLUSD_20251002
["timestamp","ask_amount","ask_price","bid_price","bid_amount"]
[1759421131380,32.3,227.1,227.05,20.8]
[1759421131787,4.44592998,227.13,227.05,0.71]
[1759421131985,32.3,227.12,227.05,0.71]
[1759421132478,4.44592998,227.15,227.05,21.51]
[1759421132678,32.28,227.14,227.06,0.85216157]
[1759421132893,32.3,227.15,227.06,0.85216157]
[1759421133081,0.4,227.23,227.1,31.81863678]
[1759421133387,32.3,227.22,227.12,0.14216157]
[1759421133584,32.3,227.22,227.13,0.71]
[1759421134414,32.3,227.22,227.14,0.14216157]
[1759421134578,36.74592998,227.22,227.14,0.14216157]
[1759421134778,32.3,227.22,227.15,0.71]
[1759421134999,43.58611486,227.27,227.16,0.14216157]
[1759421135207,4.44592998,227.25,227.16,20.94216157]
[1759421135373,4.44592998,227.24,227.16,25.34433977]
[1759421135711,0.4,227.24,227.16,0.14216157]
[1759421135884,4.44592998,227.23,227.16,0.14216157]
[1759421136088,4.84592998,227.24,227.16,4.54430243]
[1759421136280,4.84592998,227.24,227.16,0.14216157]
[1759421136602,4.44592998,227.23,227.16,0.14216157]
[1759421136806,0.4,227.24,227.13,31.67647521]
[1759421136807,4.44592998,227.21,227.13,20.8]
[1759421137011,8.84738441,227.2,227.13,25.91271033]
[1759421137377,4.44592998,227.21,227.13,25.91271033]
[1759421137777,4.44592998,227.21,227.12,0.14216157]
[1759421137979,4.44592998,227.21,227.12,20.94216157]
[1759421138404,4.44592998,227.21,227.13,0.71]
[1759421138584,4.44592998,227.19,227.09,15.98982196]
[1759421138787,4.44592998,227.17,227.09,5.11334675]
[1759421139005,0.4,227.18,227.1,20.8]
[1759421139296,8.84791967,227.17,227.1,20.8]
[1759421139686,8.84791967,227.17,227.09,21.51]
[1759421139981,4.44592998,227.15,227.09,0.71]
[1759421140197,43.26373986,227.2,227.09,5.11353155]
[1759421140383,4.40160218,227.19,227.11,0.14216157]
[1759421140589,32.24,227.19,227.13,0.14216157]
[1759421140796,4.44592998,227.22,227.14,0.71]
[1759421140994,32.24,227.21,227.14,0.71]
[1759421141212,4.40082865,227.23,227.15,4.54453885]
[1759421141414,36.66082865,227.23,227.16,0.71]
[1759421141614,32.26,227.23,227.17,0.14216157]
[1759421141816,32.26,227.23,227.19,0.14216157]
[1759421141999,32.26,227.23,227.2,0.71]
[1759421142186,32.26,227.23,227.21,0.71]
[1759421142914,4.39966562,227.29,227.21,0.71]
[1759421143226,32.24,227.29,227.23,4.40082735]
[1759421143719,37.03967807,227.29,227.2,0.14216157]
[1759421144094,37.03967807,227.29,227.22,0.14216157]
[1759421144316,32.24,227.29,227.22,0.14216157]
[1759421144692,36.63966965,227.29,227.22,0.14216157]
[1759421145006,37.03966965,227.29,227.22,0.14216157]
[1759421145923,52.48476369,227.29,227.2,0.71]
[1759421146123,4.44592998,227.27,227.2,0.14216157]
[1759421146897,4.44592998,227.25,227.17,0.14216157]
[1759421147108,4.44592998,227.25,227.16,10.87647521]
[1759421147325,4.40063369,227.24,227.16,15.27858374]
[1759421147529,4.40063369,227.24,227.17,0.14216157]
[1759421148012,4.40063369,227.24,227.16,0.71]
[1759421148013,36.62592998,227.23,227.16,0.71]
[1759421148217,36.62592998,227.23,227.14,4.40239126]
[1759421148417,36.62592998,227.23,227.15,0.14216157]
[1759421148621,32.18,227.23,227.15,0.14216157]
[1759421148807,4.44592998,227.22,227.15,0.14216157]
[1759421149320,4.40121473,227.21,227.15,0.14216157]
[1759421149619,36.58091644,227.23,227.15,4.54450601]
[1759421150220,36.58091644,227.23,227.15,0.14216157]
[1759421150403,36.98091644,227.23,227.15,0.14216157]
[1759421150747,4.44592998,227.2,227.1,0.71]
[1759421150899,47.98298482,227.23,227.1,4.40334654]
[1759421150900,4.44592998,227.18,227.1,4.40334654]
[1759421151101,32.56,227.17,227.1,4.40334654]
[1759421151326,36.96204505,227.17,227.1,0.14216157]
[1759421151638,4.44592998,227.16,227.06,0.71]
[1759421151958,36.96204505,227.17,227.08,20.8]
[1759421152103,41.40797503,227.17,227.08,20.8]
[1759421152424,41.40797503,227.17,227.09,0.14216157]
[1759421154500,4.44592998,227.16,227.09,0.14216157]
[1759421154704,4.44592998,227.16,227.09,4.54568671]
[1759421154924,32.56,227.17,227.09,5.25568671]
[1759421155608,32.1,227.16,227.12,4.40295878]
[1759421155820,32.1,227.16,227.12,5.11295878]
[1759421156029,32.1,227.16,227.12,4.40295878]
[1759421156440,0.4,227.2,227.12,5.11295878]
[1759421156614,32.1,227.17,227.12,5.11295878]
[1759421156810,32.1,227.17,227.13,0.71]
[1759421157017,4.40098127,227.23,227.14,21.65216157]
[1759421157231,32.1,227.22,227.14,21.65216157]
[1759421157432,32.1,227.22,227.16,0.14216157]
[1759421157619,32.1,227.22,227.17,4.40198969]
[1759421158019,4.40026548,227.26,227.18,0.85216157]
[1759421158231,32.1,227.25,227.18,0.85216157]
[1759421158837,4.79984937,227.29,227.21,0.14216157]
[1759421159139,32.1,227.28,227.21,0.14216157]
[1759421159642,36.4998852,227.28,227.21,4.54334863]
[1759421160047,32.1,227.28,227.21,4.54334863]
[1759421160518,32.08,227.28,227.22,0.71]
[1759421161618,32.08,227.28,227.23,4.40082735]
[1759421161814,32.06,227.29,227.24,0.7]
[1759421162133,32.06,227.32,227.26,20.8]
[1759421162449,0.4,227.35,227.27,0.84216157]
[1759421162651,32.06,227.35,227.27,0.84216157]
[1759421162825,11.19481186,227.37,227.29,0.14216157]
[1759421163017,11.19481186,227.37,227.32,11.01863678]
[1759421163237,11.19481186,227.37,227.34,0.14216157]
[1759421163766,11.19481186,227.37,227.35,4.3985045]
[1759421163940,11.19481186,227.37,227.35,5.0985045]
[1759421164141,11.19481186,227.37,227.35,0.7]
[1759421164330,32.06,227.41,227.35,0.7]
[1759421165240,36.45737379,227.41,227.35,0.7]
[1759421165439,36.45737379,227.41,227.33,0.14216157]
[1759421165639,32.06,227.41,227.34,4.39869798]
[1759421165838,32.06,227.41,227.35,0.84216157]
[1759421166256,32.06,227.41,227.38,0.14216157]
[1759421166460,0.1,227.45,227.37,20.8]
[1759421166461,32.14,227.45,227.4,0.14216157]
[1759421166837,0.1,227.45,227.42,0.14216157]
[1759421167037,0.1,227.45,227.43,0.7]
[1759421167260,0.1,227.45,227.42,0.14216157]
[1759421167485,0.1,227.45,227.42,0.84216157]
[1759421167645,0.1,227.45,227.43,5.09694356]
[1759421167845,0.1,227.45,227.43,0.7]
[1759421169461,0.1,227.45,227.42,25.33929427]
[1759421169647,0.1,227.45,227.44,5.23892555]
[1759421169846,0.1,227.45,227.44,16.11540076]
[1759421170054,0.1,227.49,227.48,20.8]
[1759421170245,0.1,227.49,227.48,0.14216157]
[1759421170444,0.1,227.49,227.48,21.64216157]
[1759421170642,0.1,227.49,227.48,32.51863678]
[1759421170860,4.49384974,227.6,227.53,0.14216157]
[1759421171068,4.49384974,227.6,227.53,11.01863678]
[1759421171069,0.1,227.6,227.53,11.01863678]
[1759421171691,0.1,227.6,227.55,4.5366287]
[1759421172164,0.1,227.6,227.57,0.14216157]
[1759421172369,0.1,227.6,227.58,21.5]
[1759421172773,0.1,227.6,227.59,0.84216157]
[1759421173488,0.1,227.6,227.59,11.71863678]
[1759421175062,0.1,227.6,227.58,20.8]
[1759421175267,0.1,227.6,227.59,11.71863678]
[1759421176493,0.1,227.6,227.59,11.01863678]
[1759421176691,0.1,227.6,227.59,11.71863678]
[1759421177673,0.1,227.6,227.59,11.01863678]
[1759421177983,0.1,227.6,227.59,43.67863678]
[1759421179092,0.1,227.6,227.59,11.71863678]
[1759421179471,0.1,227.6,227.59,43.67863678]
[1759421181873,0.1,227.6,227.59,48.07250294]
[1759421183295,0.1,227.66,227.63,10.87647521]
[1759421183601,0.1,227.66,227.65,31.81863678]
[1759421183805,0.1,227.66,227.65,63.73863678]
[1759421183985,0.1,227.66,227.65,64.44863678]
[1759421184397,0.1,227.66,227.65,68.84134488]
[1759421184606,3.90156506,227.76,227.69,20.8]
[1759421184905,6.85983066,227.79,227.69,20.8]
[1759421185103,10.84199232,227.87,227.72,0.14216157]
[1759421185276,31.9,227.86,227.72,11.01863678]
[1759421185482,6.85983066,227.84,227.72,11.01863678]
[1759421185981,6.85983066,227.83,227.74,0.14216157]
[1759421186187,6.85983066,227.83,227.73,0.14216157]
[1759421186411,4.38943025,227.82,227.73,0.14216157]
[1759421186599,22.22283653,227.82,227.73,0.14216157]
[1759421186785,4.38943025,227.82,227.73,4.53332186]
[1759421187202,4.38943025,227.82,227.73,0.14216157]
[1759421187613,15.36300587,227.82,227.73,32.02216157]
[1759421188184,15.36300587,227.82,227.73,32.00216157]
[1759421188506,6.85983066,227.8,227.73,32.00216157]
[1759421188714,6.85983066,227.8,227.73,0.14216157]
[1759421189023,6.85983066,227.81,227.73,0.14216157]
[1759421190314,17.83340628,227.82,227.73,0.14216157]
[1759421190484,22.22283653,227.82,227.73,4.53329055]
[1759421190686,22.22283653,227.82,227.73,0.14216157]
[1759421191111,22.22283653,227.82,227.73,4.53331611]
[1759421192392,11.24926091,227.82,227.73,4.53331611]
[1759421192597,22.22283653,227.82,227.73,4.53331611]
[1759421192841,31.9,227.86,227.74,0.69]
[1759421193121,13.18420532,227.96,227.74,0.69]
[1759421193122,6.85983066,227.9,227.81,0.14216157]
[1759421193698,6.85983066,227.88,227.81,0.14216157]
[1759421194000,6.85983066,227.84,227.78,0.14216157]
[1759421194193,0.14216157,227.91,227.77,20.8]
[1759421194698,0.14216157,227.91,227.76,20.8]
[1759421194699,4.38923758,227.83,227.76,20.8]
[1759421195197,6.85983066,227.84,227.77,0.14216157]
[1759421195502,6.85983066,227.86,227.77,0.14216157]
[1759421195813,4.3886597,227.86,227.77,0.14216157]
[1759421196186,4.3886597,227.86,227.77,11.01863678]
[1759421196390,38.63983066,227.91,227.77,11.70863678]
[1759421196692,4.38788942,227.9,227.82,20.8]
[1759421197293,6.85983066,227.89,227.81,0.14216157]
[1759421197511,6.85983066,227.89,227.8,0.14216157]
[1759421197896,15.35761298,227.9,227.8,0.14216157]
[1759421198225,4.38788942,227.9,227.8,0.14216157]
[1759421198520,6.85983066,227.89,227.8,0.14216157]
[1759421198701,4.38827453,227.88,227.8,0.14216157]
[1759421198904,6.85983066,227.81,227.7,10.87647521]
[1759421199113,31.78,227.83,227.7,10.87647521]
[1759421199313,6.85983066,227.82,227.75,20.8]
[1759421199494,58.1003335,227.88,227.75,20.8]
[1759421199495,36.15896085,227.88,227.76,11.01863678]
[1759421199694,6.85983066,227.86,227.76,11.01863678]
[1759421199900,31.8,227.87,227.76,11.01863678]
[1759421200115,6.85983066,227.86,227.76,11.01863678]
[1759421200317,6.85983066,227.85,227.76,11.01863678]
[1759421200716,6.85983066,227.85,227.79,20.8]
[1759421200897,6.85983066,227.83,227.76,0.14216157]
[1759421201306,15.36099515,227.85,227.76,0.14216157]
[1759421201608,4.38886437,227.85,227.76,20.8]
[1759421201810,6.85983066,227.84,227.76,20.8]
[1759421202326,6.85983066,227.93,227.81,11.01863678]
[1759421202500,6.85983066,227.93,227.81,11.70863678]
[1759421202835,4.38750438,227.92,227.83,0.14216157]
[1759421203005,31.78,227.94,227.86,20.8]
[1759421203006,38.63983066,227.94,227.86,20.8]
[1759421203201,43.02696594,227.94,227.86,20.8]
[1759421203615,43.02696594,227.94,227.85,20.8]
[1759421204003,6.85983066,227.93,227.85,20.8]
[1759421205213,4.38750438,227.92,227.84,0.14216157]
[1759421205407,4.38750438,227.92,227.84,20.94216157]
[1759421205727,15.35626534,227.92,227.84,20.94216157]
[1759421205932,15.35626534,227.92,227.85,20.8]
[1759421206101,14.85626534,227.92,227.85,20.8]
[1759421206301,36.16727232,227.94,227.85,21.49]
[1759421206520,43.02710298,227.94,227.85,0.69]
[1759421206923,36.16727232,227.94,227.85,0.69]
[1759421207101,6.85983066,227.93,227.85,21.49]
[1759421207430,31.76,227.98,227.86,11.70863678]
[1759421208028,6.85983066,227.96,227.86,11.70863678]
[1759421208412,31.76,227.98,227.88,0.14216157]
[1759421208612,6.85983066,227.97,227.89,0.69]
[1759421208923,38.61983066,227.98,227.9,0.14216157]
[1759421209101,31.76,227.98,227.9,0.14216157]
[1759421209301,400.0,227.99,227.93,0.14216157]
[1759421209531,400.0,227.99,227.94,0.69]
[1759421209824,411.24601525,227.99,227.91,0.69]
[1759421210002,404.38618459,227.99,227.91,0.69]
[1759421210339,404.38618459,227.99,227.87,0.69]
[1759421210340,6.85983066,227.97,227.87,0.69]
[1759421210628,6.85983066,227.93,227.85,20.8]
[1759421210812,447.0915778,227.99,227.84,0.69]
[1759421210813,6.85983066,227.92,227.84,0.69]
[1759421211200,31.74,227.93,227.84,0.69]
[1759421211400,11.24752755,227.91,227.84,0.69]
[1759421212053,4.38769689,227.91,227.84,0.69]
[1759421212229,6.85983066,227.9,227.84,0.69]
[1759421212418,6.85983066,227.89,227.79,0.69]
[1759421212725,15.35693913,227.91,227.79,0.69]
[1759421212726,6.85983066,227.87,227.79,0.69]
[1759421213425,4.3886597,227.86,227.79,0.69]
[1759421213912,11.24849036,227.86,227.79,0.69]
[1759421214113,4.3886597,227.86,227.79,0.69]
[1759421214700,4.3886597,227.86,227.77,20.94216157]
[1759421214904,11.24849036,227.86,227.78,0.14216157]
[1759421215419,6.85983066,227.84,227.77,0.69]
[1759421215625,6.85983066,227.81,227.73,0.69]
[1759421215825,6.85983066,227.8,227.74,0.14216157]
[1759421216032,6.85983066,227.8,227.73,0.69]
[1759421216224,6.85983066,227.81,227.74,0.14216157]
[1759421216537,6.85983066,227.81,227.73,0.69]
[1759421216738,31.7,227.82,227.71,0.69]
[1759421216739,6.85983066,227.8,227.71,0.69]
[1759421217042,31.7,227.82,227.69,0.69]
[1759421217413,4.39058658,227.76,227.69,0.69]
[1759421217620,6.85983066,227.78,227.69,5.08190881]
[1759421218012,6.85983066,227.77,227.69,0.69]
[1759421218336,38.57983066,227.76,227.66,0.69]
[1759421218635,38.57983066,227.76,227.62,0.69]
[1759421218636,6.85983066,227.72,227.62,0.69]
[1759421218839,31.72,227.76,227.62,0.69]
[1759421219132,6.85983066,227.69,227.59,10.87647521]
[1759421219334,6.85983066,227.69,227.6,0.69]
[1759421219521,4.3921293,227.68,227.6,5.08351572]
[1759421219933,6.85983066,227.73,227.61,0.69]
[1759421220129,15.42,227.79,227.62,10.87647521]
[1759421220330,15.42,227.79,227.66,11.01863678]
[1759421220331,22.27983066,227.79,227.66,11.01863678]
[1759421220516,6.85983066,227.77,227.68,0.14216157]
[1759421220911,6.85983066,227.73,227.65,0.14216157]
[1759421221118,15.36300587,227.82,227.67,0.14216157]
[1759421221349,15.36300587,227.82,227.69,0.14216157]
[1759421221523,4.39000834,227.79,227.7,4.39174352]
[1759421221718,4.38937035,227.83,227.71,0.79216157]
[1759421221927,31.78,227.81,227.71,0.79216157]
[1759421222429,4.38884669,227.86,227.71,0.79216157]
[1759421222634,31.78,227.84,227.71,0.79216157]
[1759421222833,10.87647521,227.9,227.71,0.79216157]
[1759421222834,4.38850494,227.87,227.73,0.14216157]
[1759421223144,31.78,227.86,227.71,0.14216157]
[1759421223322,20.8,227.83,227.71,0.14216157]
[1759421223524,6.85983066,227.73,227.67,20.8]
[1759421223721,6.85983066,227.72,227.63,0.65]
[1759421223931,31.8,227.77,227.63,0.65]
[1759421224244,31.8,227.77,227.64,0.14216157]
[1759421224424,31.8,227.77,227.63,0.65]
[1759421224623,6.85983066,227.71,227.63,0.65]
[1759421224818,6.85983066,227.74,227.63,21.45]
[1759421225024,38.67983066,227.74,227.63,20.8]
[1759421225226,6.85983066,227.73,227.64,0.65]
[1759421225423,6.85983066,227.73,227.65,4.3927081]
[1759421225646,38.67983066,227.75,227.66,0.14216157]
[1759421226147,11.25041724,227.76,227.66,0.79216157]
[1759421226651,31.82,227.77,227.69,0.14216157]
[1759421226846,36.21008464,227.79,227.7,0.65]
[1759421227234,6.85983066,227.78,227.69,0.14216157]
[1759421227552,6.85983066,227.78,227.66,0.65]
[1759421227553,11.25080282,227.74,227.66,25.33454178]
[1759421227733,4.39097216,227.74,227.66,25.33454178]
[1759421227928,11.25080282,227.74,227.66,0.14216157]
[1759421228322,11.25080282,227.74,227.65,0.65]
[1759421228733,6.85983066,227.74,227.66,4.39249205]
[1759421228960,4.39089005,227.75,227.67,0.14216157]
[1759421229246,15.36783845,227.75,227.61,0.65]
[1759421229436,4.39232222,227.67,227.59,4.39386616]
[1759421229935,4.39211147,227.69,227.61,20.8]
[1759421230247,31.84,227.7,227.62,0.65]
[1759421230450,4.39175551,227.7,227.62,0.65]
[1759421230648,38.69983066,227.72,227.63,0.14216157]
[1759421231620,36.23153345,227.72,227.64,5.04290107]
[1759421231825,4.39153345,227.72,227.64,5.04290107]
[1759421232451,11.25136411,227.72,227.63,0.14216157]
[1759421232664,6.85983066,227.68,227.58,22.51148357]
[1759421232826,15.36992796,227.72,227.58,22.51148357]
[1759421232827,4.39153345,227.72,227.59,16.02853156]
[1759421233156,4.39153345,227.72,227.6,0.65]
[1759421233336,6.85983066,227.7,227.61,0.14216157]
[1759421233528,6.85983066,227.69,227.61,0.14216157]
[1759421233725,6.85983066,227.66,227.59,0.14216157]
[1759421233928,6.85983066,227.65,227.56,0.65]
[1759421234227,15.36992796,227.72,227.58,20.8]
[1759421234438,6.85983066,227.68,227.56,5.04444228]
[1759421234761,6.85983066,227.66,227.56,25.84444228]
[1759421234941,6.85983066,227.65,227.56,25.84444228]
[1759421235635,31.84,227.71,227.56,25.84444228]
[1759421235841,6.85983066,227.69,227.57,0.79216157]
[1759421236226,6.85983066,227.68,227.57,0.79216157]
[1759421236959,4.39174352,227.7,227.59,0.14216157]
[1759421237130,31.82,227.68,227.59,0.79216157]
[1759421237556,4.39151887,227.72,227.6,10.87647521]
[1759421237750,36.23151887,227.72,227.63,25.19309405]
[1759421237935,6.85983066,227.71,227.63,20.8]
[1759421238456,36.23151887,227.72,227.61,4.39347515]
[1759421238457,6.85983066,227.7,227.61,4.39347515]
[1759421238755,6.85983066,227.71,227.63,20.8]
[1759421238938,31.82,227.71,227.63,20.8]
[1759421239140,38.67983066,227.71,227.63,20.8]
[1759421239334,21.94760467,227.82,227.65,0.14216157]
[1759421239543,6.85983066,227.77,227.66,0.65]
[1759421239746,6.85983066,227.73,227.65,20.8]
[1759421239949,38.67983066,227.73,227.65,20.8]
[1759421240143,6.85983066,227.72,227.65,20.8]
[1759421240565,31.82,227.73,227.65,0.65]
[1759421241060,31.84,227.73,227.63,4.39309405]
[1759421241238,38.69983066,227.73,227.64,0.14216157]
[1759421241438,6.85983066,227.72,227.64,0.14216157]
[1759421241840,6.85983066,227.7,227.61,4.39339051]
[1759421242159,6.85983066,227.68,227.59,4.39374693]
[1759421242343,4.42060803,227.68,227.61,20.8]
[1759421242550,4.42060803,227.68,227.59,0.14216157]
[1759421242749,15.37042729,227.71,227.59,0.14216157]
[1759421242940,15.37042729,227.71,227.61,20.8]
[1759421243457,15.37042729,227.71,227.59,20.94216157]
[1759421243658,15.37042729,227.71,227.61,20.94216157]
[1759421243659,31.82,227.7,227.61,20.94216157]
[1759421243859,36.21182397,227.7,227.63,4.39309405]
[1759421244069,36.21175121,227.7,227.62,0.67]
[1759421244241,36.21175121,227.7,227.6,21.47]
[1759421244438,36.21176695,227.7,227.61,0.81216157]
[1759421244630,31.82,227.7,227.61,0.81216157]
[1759421245556,4.3913578,227.72,227.61,0.81216157]
[1759421245863,4.39174352,227.7,227.63,20.8]
[1759421246069,4.42060803,227.69,227.61,4.39347472]
[1759421246367,8.81235155,227.7,227.61,4.39347472]
[1759421247081,4.42060803,227.67,227.6,21.47]
[1759421247253,4.42060803,227.68,227.6,21.47]
[1759421247457,4.42060803,227.65,227.56,4.3944373]
[1759421247765,36.22060803,227.64,227.55,4.39461831]
[1759421247945,4.42060803,227.62,227.54,0.67]
[1759421248143,40.63370208,227.63,227.54,5.06480078]
[1759421249170,4.42060803,227.62,227.54,5.06480078]
[1759421249344,47.19582919,227.63,227.54,20.8]
[1759421249765,36.21309405,227.63,227.54,20.8]
[1759421249983,20.8,227.66,227.55,5.06463854]
[1759421250172,31.82,227.64,227.55,5.06463854]
[1759421250746,4.42060803,227.62,227.54,25.19477707]
[1759421251866,4.39348007,227.61,227.54,25.19477707]
[1759421252258,8.8140881,227.61,227.54,20.8]
[1759421253055,8.8140881,227.61,227.53,5.06496031]
[1759421253867,15.40395766,227.62,227.53,5.06496031]
[1759421254664,15.40395766,227.62,227.49,5.09579464]
[1759421254665,4.42060803,227.57,227.49,5.09579464]
[1759421254865,4.42060803,227.55,227.49,0.7]
[1759421255176,4.42060803,227.52,227.47,15.1637299]
[1759421255484,31.8,227.57,227.47,15.1637299]
[1759421255859,8.81560599,227.54,227.47,15.1637299]
[1759421256866,4.42060803,227.52,227.47,15.1637299]
[1759421257124,31.8,227.51,227.47,15.1637299]
[1759421257360,31.8,227.51,227.48,0.7]
[1759421257862,4.39444542,227.56,227.49,5.09564289]
[1759421258058,31.76,227.55,227.49,5.59564289]
[1759421258259,36.18060803,227.55,227.49,1.2]
[1759421258565,36.18060803,227.55,227.47,19.55989018]
[1759421258763,36.18060803,227.55,227.48,0.7]
[1759421258963,31.76,227.55,227.48,0.7]
[1759421259371,31.76,227.55,227.47,19.55989018]
[1759421259883,4.39483167,227.54,227.47,19.55989018]
[1759421260066,4.39483167,227.54,227.51,0.046238]
[1759421260381,4.42060803,227.52,227.51,0.046238]
[1759421260682,4.42060803,227.53,227.51,0.046238]
[1759421260884,31.78,227.52,227.51,0.046238]
[1759421261775,40.59582603,227.52,227.51,0.046238]
[1759421262576,31.78,227.52,227.51,0.046238]
[1759421262775,40.59582603,227.52,227.51,0.046238]
[1759421263582,40.59582603,227.52,227.47,15.1637299]
[1759421263583,10.87647521,227.51,227.47,15.1637299]
[1759421263766,4.42060803,227.48,227.47,15.1637299]
[1759421264092,40.49307409,227.48,227.47,15.1637299]
[1759421264589,61.39659888,227.48,227.47,15.1637299]
[1759421264890,31.78,227.48,227.47,15.1637299]
[1759421265590,4.39561334,227.5,227.47,15.1637299]
[1759421265895,31.8,227.49,227.47,15.8637299]
[1759421266070,31.8,227.49,227.48,0.7]
[1759421266470,31.8,227.49,227.47,15.1637299]
[1759421266667,36.19580775,227.49,227.47,15.1637299]
[1759421266997,40.61651038,227.49,227.47,15.1637299]
[1759421267200,31.8,227.49,227.47,15.1637299]
[1759421267372,31.8,227.49,227.47,15.8637299]
[1759421267566,31.8,227.49,227.47,15.1637299]
[1759421267990,21.96421531,227.65,227.47,15.8637299]
[1759421268189,34.26,227.69,227.47,15.8637299]
[1759421268190,4.42060803,227.52,227.47,15.8637299]
[1759421268499,10.87647521,227.58,227.47,15.1637299]
[1759421268500,4.42060803,227.49,227.47,15.1637299]
[1759421268670,31.82,227.51,227.47,15.1637299]
[1759421268671,36.24060803,227.48,227.47,15.1637299]
[1759421268872,36.26060803,227.48,227.47,15.1637299]
[1759421269897,40.65659888,227.48,227.47,15.1637299]
[1759421270378,40.63659888,227.48,227.47,15.1637299]
[1759421270577,4.39599085,227.48,227.47,15.1637299]
[1759421270787,40.63659888,227.48,227.47,15.1637299]
[1759421271081,8.81659888,227.48,227.47,15.1637299]
[1759421271396,40.61659888,227.48,227.47,15.1637299]
[1759421271696,36.22060803,227.48,227.47,15.1637299]
[1759421271880,4.42060803,227.51,227.47,15.8637299]
[1759421272074,31.8,227.5,227.48,0.7]
[1759421272985,31.8,227.5,227.49,0.7]
[1759421273295,4.39503288,227.53,227.49,0.7]
[1759421273478,4.39503288,227.53,227.47,19.55982801]
[1759421273680,31.8,227.52,227.47,19.55982801]
[1759421274075,31.8,227.52,227.48,0.7]
[1759421274280,31.8,227.52,227.48,5.09598943]
[1759421274593,8.81503774,227.57,227.49,0.7]
[1759421274796,31.8,227.56,227.49,0.7]
[1759421275179,31.8,227.56,227.51,20.8]
[1759421275380,31.8,227.56,227.52,0.7]
[1759421275579,31.8,227.56,227.53,0.7]
[1759421275792,31.8,227.56,227.51,0.7]
[1759421276199,36.22060803,227.56,227.51,0.7]
[1759421276509,4.39463854,227.55,227.51,0.7]
[1759421277378,4.39463854,227.55,227.48,4.39598236]
[1759421277581,4.42060803,227.54,227.48,0.7]
[1759421278392,4.39502483,227.53,227.48,0.7]
[1759421278592,31.78,227.52,227.48,0.7]
[1759421278903,31.78,227.52,227.49,0.7]
[1759421279280,31.78,227.52,227.5,0.7]
[1759421279481,31.78,227.52,227.51,0.7]
[1759421280323,10.98418277,227.6,227.51,5.09537081]
[1759421280612,4.42060803,227.58,227.51,0.7]
[1759421281787,4.42060803,227.56,227.47,19.55989142]
[1759421281996,4.42060803,227.56,227.5,0.66]
[1759421282318,10.98306964,227.63,227.53,20.8]
[1759421282492,4.3927081,227.65,227.55,20.8]
[1759421282680,31.78,227.64,227.56,0.66]
[1759421282888,31.78,227.63,227.56,0.66]
[1759421284288,31.8,227.62,227.57,4.39425231]
[1759421284625,31.8,227.62,227.58,21.46]
[1759421284919,31.8,227.62,227.59,0.66]
[1759421285117,31.8,227.62,227.6,0.66]
[1759421285320,31.8,227.62,227.57,0.66]
[1759421285518,31.8,227.63,227.58,0.66]
[1759421285709,17.65211619,227.68,227.59,0.14216157]
[1759421285710,13.23150816,227.68,227.59,0.14216157]
[1759421285911,4.42060803,227.72,227.6,0.66]
[1759421286110,4.42060803,227.7,227.6,0.66]
[1759421286310,31.8,227.71,227.6,0.66]
[1759421286506,4.39174352,227.7,227.61,4.39348007]
[1759421286814,17.64737302,227.7,227.62,0.66]
[1759421287016,36.22060803,227.69,227.62,0.66]
[1759421288127,31.8,227.69,227.62,0.66]
[1759421288334,36.22060803,227.69,227.62,0.66]
[1759421288504,31.8,227.69,227.62,5.05321059]
[1759421288700,36.19198098,227.69,227.62,4.39321059]
[1759421288918,4.42060803,227.72,227.63,0.66]
[1759421289221,31.78,227.71,227.63,0.66]
[1759421289517,31.78,227.71,227.65,20.8]
[1759421290021,31.78,227.71,227.6,0.14216157]
[1759421290022,4.42060803,227.7,227.61,0.80216157]
[1759421290222,4.42060803,227.68,227.61,0.66]
[1759421290522,31.78,227.67,227.61,0.66]
[1759421290724,31.78,227.67,227.61,25.8533462]
[1759421292007,31.78,227.67,227.62,0.66]
[1759421292330,31.78,227.67,227.63,0.66]
[1759421292541,36.17241315,227.67,227.6,0.66]
[1759421292738,31.78,227.67,227.61,0.66]